[Event "*** Titled Tuesday Blitz"]
[Site "Chess.com"]
[Date "2019.01.01"]
[Round "9"]
[White "guillembaches"]
[Black "Triumphmate"]
[Result "1-0"]
[WhiteElo "2360"]
[BlackElo "2211"]
[TimeControl "180+2"]
[EndTime "15:07:54 PST"]
[Termination "guillembaches won by checkmate"]

1. e4 {[%clk 0:03:01.9]} 1... e5 {[%clk 0:03:00]} 2. Nf3 {[%clk 0:03:02.7]} 2...
Nc6 {[%clk 0:03:01.3]} 3. Nc3 {[%clk 0:03:03.9]} 3... Nf6 {[%clk 0:03:01.9]} 4.
d4 {[%clk 0:03:05.2]} 4... exd4 {[%clk 0:03:01.9]} 5. Nxd4 {[%clk 0:03:07.1]}
5... Bb4 {[%clk 0:03:00.7]} 6. Nxc6 {[%clk 0:03:08.3]} 6... bxc6 {[%clk
0:03:02.1]} 7. Bd3 {[%clk 0:03:09.5]} 7... O-O {[%clk 0:03:00.9]} 8. O-O {[%clk
0:03:08.1]} 8... d6 {[%clk 0:03:00.8]} 9. Bg5 {[%clk 0:03:03.9]} 9... h6 {[%clk
0:02:54.7]} 10. Bh4 {[%clk 0:03:03.4]} 10... Re8 {[%clk 0:02:52.5]} 11. Re1
{[%clk 0:02:43.3]} 11... a5 {[%clk 0:02:45.9]} 12. h3 {[%clk 0:02:38.3]} 12...
a4 {[%clk 0:02:45.1]} 13. a3 {[%clk 0:02:36.4]} 13... Bxc3 {[%clk 0:02:45.6]}
14. bxc3 {[%clk 0:02:38.3]} 14... Ra5 {[%clk 0:02:45.6]} 15. Qf3 {[%clk
0:02:33.9]} 15... Rc5 {[%clk 0:02:38.5]} 16. Rad1 {[%clk 0:02:17.1]} 16... Re6
{[%clk 0:02:34.8]} 17. c4 {[%clk 0:02:11.5]} 17... Qe8 {[%clk 0:02:31.1]} 18.
Bg3 {[%clk 0:01:58.1]} 18... Ba6 {[%clk 0:02:31.1]} 19. e5 {[%clk 0:01:44.2]}
19... dxe5 {[%clk 0:02:22.7]} 20. Bf5 {[%clk 0:01:45.2]} 20... Rd6 {[%clk
0:02:22.2]} 21. Qc3 {[%clk 0:01:40.1]} 21... Qd8 {[%clk 0:02:06.2]} 22. Bd3
{[%clk 0:01:24.8]} 22... Nd7 {[%clk 0:01:28.3]} 23. Qb4 {[%clk 0:01:08.8]} 23...
f6 {[%clk 0:00:53.3]} 24. Qxa4 {[%clk 0:01:06.6]} 24... Bc8 {[%clk 0:00:35.9]}
25. Qb4 {[%clk 0:01:04.6]} 25... Qe7 {[%clk 0:00:36.3]} 26. Bf5 {[%clk
0:00:58.6]} 26... Rxd1 {[%clk 0:00:08.2]} 27. Rxd1 {[%clk 0:00:57.3]} 27... Nb6
{[%clk 0:00:09.2]} 28. Bxc8 {[%clk 0:00:48]} 28... Nxc8 {[%clk 0:00:11.1]} 29.
Qb8 {[%clk 0:00:46]} 29... Qe6 {[%clk 0:00:08.7]} 30. Rd8+ {[%clk 0:00:43]}
30... Kh7 {[%clk 0:00:09]} 31. Qxc8 {[%clk 0:00:44.1]} 31... Qxc4 {[%clk
0:00:09.1]} 32. Qf5+ {[%clk 0:00:45.2]} 32... g6 {[%clk 0:00:09.4]} 33. Qd7+
{[%clk 0:00:45.5]} 33... Qf7 {[%clk 0:00:09.7]} 34. Qxf7# {[%clk 0:00:46.3]} 1-0

[Event "*** Titled Tuesday Blitz"]
[Site "Chess.com"]
[Date "2019.01.01"]
[Round "9"]
[White "Indianlad"]
[Black "2nd_life"]
[Result "1-0"]
[WhiteElo "2862"]
[BlackElo "2449"]
[TimeControl "180+2"]
[EndTime "15:08:00 PST"]
[Termination "Indianlad won by resignation"]

1. d4 {[%clk 0:03:01.9]} 1... Nf6 {[%clk 0:02:43]} 2. c4 {[%clk 0:03:02.8]} 2...
e6 {[%clk 0:02:43.7]} 3. Nf3 {[%clk 0:03:03.8]} 3... b6 {[%clk 0:02:41.2]} 4. a3
{[%clk 0:03:04.9]} 4... Ba6 {[%clk 0:02:41.1]} 5. Qb3 {[%clk 0:03:04.5]} 5...
Bb7 {[%clk 0:02:30.6]} 6. Nc3 {[%clk 0:03:03.7]} 6... Ne4 {[%clk 0:02:18.4]} 7.
g3 {[%clk 0:02:44.9]} 7... Nxc3 {[%clk 0:02:13.4]} 8. Qxc3 {[%clk 0:02:44.8]}
8... Be7 {[%clk 0:02:08.7]} 9. Bg2 {[%clk 0:02:45.1]} 9... O-O {[%clk
0:02:09.7]} 10. O-O {[%clk 0:02:46.4]} 10... d6 {[%clk 0:02:10.7]} 11. Qc2
{[%clk 0:02:28.4]} 11... Nd7 {[%clk 0:02:04.5]} 12. Ng5 {[%clk 0:02:27.4]} 12...
Bxg5 {[%clk 0:01:59.7]} 13. Bxb7 {[%clk 0:02:28.5]} 13... Rb8 {[%clk 0:01:58.9]}
14. Bc6 {[%clk 0:02:27.8]} 14... Bxc1 {[%clk 0:01:55.3]} 15. Raxc1 {[%clk
0:02:29.7]} 15... Nf6 {[%clk 0:01:47.1]} 16. Rfd1 {[%clk 0:02:30.3]} 16... Qe7
{[%clk 0:01:47.8]} 17. b4 {[%clk 0:02:26.4]} 17... e5 {[%clk 0:01:36]} 18. dxe5
{[%clk 0:02:21.9]} 18... dxe5 {[%clk 0:01:32]} 19. Qa4 {[%clk 0:01:56.3]} 19...
a5 {[%clk 0:00:54.4]} 20. bxa5 {[%clk 0:01:56.2]} 20... bxa5 {[%clk 0:00:55.7]}
21. Qxa5 {[%clk 0:01:56]} 21... Rb2 {[%clk 0:00:56.9]} 22. Re1 {[%clk 0:01:14]}
22... e4 {[%clk 0:00:47.9]} 23. Rcd1 {[%clk 0:00:58.3]} 23... e3 {[%clk
0:00:47.3]} 24. f4 {[%clk 0:00:54.7]} 24... Rd2 {[%clk 0:00:35]} 25. Bf3 {[%clk
0:00:52.7]} 25... Rfd8 {[%clk 0:00:33.8]} 26. Rb1 {[%clk 0:00:52.9]} 26... h5
{[%clk 0:00:34.3]} 27. Qe5 {[%clk 0:00:52]} 27... Qxa3 {[%clk 0:00:31.1]} 28.
Qxc7 {[%clk 0:00:52.8]} 28... h4 {[%clk 0:00:25.7]} 29. Rb8 {[%clk 0:00:47.9]}
29... Rxb8 {[%clk 0:00:18.5]} 30. Qxb8+ {[%clk 0:00:49.8]} 30... Kh7 {[%clk
0:00:20]} 31. Qb5 {[%clk 0:00:51.7]} 31... hxg3 {[%clk 0:00:17.5]} 32. Qf5+
{[%clk 0:00:50.3]} 32... Kg8 {[%clk 0:00:17.5]} 33. hxg3 {[%clk 0:00:51.8]}
33... Qb2 {[%clk 0:00:13.1]} 34. Rb1 {[%clk 0:00:48.6]} 1-0

[Event "*** Titled Tuesday Blitz"]
[Site "Chess.com"]
[Date "2019.01.01"]
[Round "9"]
[White "PrinceCharming92"]
[Black "Quiet_Desperation"]
[Result "0-1"]
[WhiteElo "2431"]
[BlackElo "2387"]
[TimeControl "180+2"]
[EndTime "15:08:04 PST"]
[Termination "Quiet_Desperation won by resignation"]

1. e4 {[%clk 0:03:01.9]} 1... Nc6 {[%clk 0:03:01]} 2. Nf3 {[%clk 0:03:02.3]}
2... d6 {[%clk 0:03:02.3]} 3. Bc4 {[%clk 0:03:02.3]} 3... Nf6 {[%clk 0:03:03.6]}
4. d3 {[%clk 0:03:03.1]} 4... e5 {[%clk 0:03:04.4]} 5. O-O {[%clk 0:03:03.8]}
5... Be7 {[%clk 0:03:05.9]} 6. c3 {[%clk 0:03:04.7]} 6... O-O {[%clk 0:03:06.9]}
7. Nbd2 {[%clk 0:03:05.7]} 7... Bg4 {[%clk 0:03:08.1]} 8. Re1 {[%clk 0:03:05.6]}
8... Re8 {[%clk 0:03:07.5]} 9. Nf1 {[%clk 0:03:06.1]} 9... d5 {[%clk 0:03:08.2]}
10. exd5 {[%clk 0:03:06]} 10... Nxd5 {[%clk 0:03:09.6]} 11. h3 {[%clk 0:03:07]}
11... Bh5 {[%clk 0:03:10.7]} 12. Ng3 {[%clk 0:03:07.9]} 12... Bg6 {[%clk
0:03:11.7]} 13. Nxe5 {[%clk 0:03:05.3]} 13... Nxe5 {[%clk 0:03:13.1]} 14. Rxe5
{[%clk 0:03:06]} 14... Nb6 {[%clk 0:03:14.7]} 15. Qe2 {[%clk 0:02:48.7]} 15...
Nxc4 {[%clk 0:03:10.3]} 16. dxc4 {[%clk 0:02:48.6]} 16... Bd3 {[%clk 0:03:11.9]}
17. Qg4 {[%clk 0:02:37]} 17... Bd6 {[%clk 0:02:59.1]} 18. Rxe8+ {[%clk
0:02:28.9]} 18... Qxe8 {[%clk 0:02:58.6]} 19. Be3 {[%clk 0:02:20.1]} 19... Bg6
{[%clk 0:02:40.9]} 20. Nf5 {[%clk 0:02:04.2]} 20... Bf8 {[%clk 0:02:30.7]} 21.
Rd1 {[%clk 0:01:50.5]} 21... Rd8 {[%clk 0:02:31.6]} 22. Rd4 {[%clk 0:01:39.8]}
22... c5 {[%clk 0:02:29.2]} 23. Rd5 {[%clk 0:01:37.1]} 23... b6 {[%clk
0:02:11.5]} 24. Ng3 {[%clk 0:01:16.7]} 24... Be7 {[%clk 0:01:39]} 25. Qd1 {[%clk
0:01:05.9]} 25... Bf6 {[%clk 0:01:35.2]} 26. Rxd8 {[%clk 0:00:56.1]} 26... Bxd8
{[%clk 0:01:35.9]} 27. b3 {[%clk 0:00:49.7]} 27... Bf6 {[%clk 0:01:36.1]} 28.
Qd2 {[%clk 0:00:50.4]} 28... h5 {[%clk 0:01:32.6]} 29. Ne2 {[%clk 0:00:51.2]}
29... Qe4 {[%clk 0:01:30.9]} 30. Nf4 {[%clk 0:00:46.4]} 30... Be5 {[%clk
0:01:25.9]} 31. Nxg6 {[%clk 0:00:41.1]} 31... fxg6 {[%clk 0:01:27.3]} 32. g3
{[%clk 0:00:30]} 32... Kh7 {[%clk 0:01:22.3]} 33. h4 {[%clk 0:00:26.9]} 33...
Qb1+ {[%clk 0:01:20.8]} 34. Kg2 {[%clk 0:00:26.7]} 34... Qe4+ {[%clk 0:01:22]}
35. Kh2 {[%clk 0:00:28.2]} 35... Qf3 {[%clk 0:01:22.3]} 36. b4 {[%clk 0:00:21]}
36... Qg4 {[%clk 0:01:15.7]} 37. bxc5 {[%clk 0:00:20.3]} 37... bxc5 {[%clk
0:01:11.8]} 38. Kg1 {[%clk 0:00:19.6]} 38... Qxc4 {[%clk 0:01:12.2]} 39. a3
{[%clk 0:00:19.3]} 39... Bxc3 {[%clk 0:01:07.9]} 40. Qd6 {[%clk 0:00:18.3]}
40... Bd4 {[%clk 0:01:05.8]} 41. Bg5 {[%clk 0:00:14.5]} 41... Qd3 {[%clk
0:00:59.3]} 42. a4 {[%clk 0:00:13.9]} 42... Bxf2+ {[%clk 0:00:59.5]} 0-1

[Event "*** Titled Tuesday Blitz"]
[Site "Chess.com"]
[Date "2019.01.01"]
[Round "9"]
[White "ChessGamingPro"]
[Black "novocane"]
[Result "1-0"]
[WhiteElo "1711"]
[BlackElo "2108"]
[TimeControl "180+2"]
[EndTime "15:08:19 PST"]
[Termination "ChessGamingPro won on time"]

1. e4 {[%clk 0:03:01.9]} 1... c5 {[%clk 0:01:52.2]} 2. Nf3 {[%clk 0:02:09.6]}
2... Nc6 {[%clk 0:01:52.6]} 3. d4 {[%clk 0:02:09.2]} 3... cxd4 {[%clk
0:01:53.7]} 4. Nxd4 {[%clk 0:02:11.1]} 4... e5 {[%clk 0:01:53.4]} 5. Nb5 {[%clk
0:02:08.8]} 5... d6 {[%clk 0:01:54.1]} 6. N1c3 {[%clk 0:02:08.8]} 6... a6 {[%clk
0:01:53.6]} 7. Na3 {[%clk 0:02:08.9]} 7... Be7 {[%clk 0:01:53.8]} 8. Nd5 {[%clk
0:02:06.1]} 8... Nf6 {[%clk 0:01:55.2]} 9. Be3 {[%clk 0:01:50.3]} 9... Nxd5
{[%clk 0:01:53.4]} 10. exd5 {[%clk 0:01:49.6]} 10... Nd4 {[%clk 0:01:49.4]} 11.
Bxd4 {[%clk 0:01:47]} 11... exd4 {[%clk 0:01:49.7]} 12. Qxd4 {[%clk 0:01:43]}
12... O-O {[%clk 0:01:06.8]} 13. Qd2 {[%clk 0:01:28.6]} 13... Re8 {[%clk
0:00:44.6]} 14. Be2 {[%clk 0:01:16.5]} 14... Bg5 {[%clk 0:00:44.6]} 15. Qd3
{[%clk 0:01:05.7]} 15... Qe7 {[%clk 0:00:30.6]} 16. Nc4 {[%clk 0:00:35.6]} 16...
Bf5 {[%clk 0:00:17.9]} 17. Qf3 {[%clk 0:00:23.3]} 17... Bxc2 {[%clk 0:00:18.6]}
18. Ne3 {[%clk 0:00:16.3]} 18... Be4 {[%clk 0:00:14.2]} 19. Qg3 {[%clk
0:00:11.3]} 19... Qf6 {[%clk 0:00:14.3]} 20. O-O {[%clk 0:00:09.6]} 20... Bf4
{[%clk 0:00:12.8]} 21. Qg4 {[%clk 0:00:07.4]} 21... Bh6 {[%clk 0:00:06.1]} 22.
Rfe1 {[%clk 0:00:04.2]} 22... Qxb2 {[%clk 0:00:05.9]} 23. Qg3 {[%clk 0:00:03.9]}
23... Qf6 {[%clk 0:00:02.7]} 24. Nc4 {[%clk 0:00:03.7]} 24... Bf4 {[%clk
0:00:02.7]} 25. Qb3 {[%clk 0:00:03.3]} 25... Bxd5 {[%clk 0:00:03.4]} 26. Qb6
{[%clk 0:00:02.8]} 1-0

[Event "*** Titled Tuesday Blitz"]
[Site "Chess.com"]
[Date "2019.01.01"]
[Round "9"]
[White "olksuna"]
[Black "shnitez"]
[Result "0-1"]
[WhiteElo "2473"]
[BlackElo "2562"]
[TimeControl "180+2"]
[EndTime "15:08:24 PST"]
[Termination "shnitez won by checkmate"]

1. c4 {[%clk 0:03:01.9]} 1... e5 {[%clk 0:02:59.2]} 2. g3 {[%clk 0:03:02.5]}
2... Nc6 {[%clk 0:03:00.2]} 3. Bg2 {[%clk 0:03:03.9]} 3... Bc5 {[%clk
0:02:58.7]} 4. Nc3 {[%clk 0:03:05.1]} 4... a6 {[%clk 0:02:59.9]} 5. e3 {[%clk
0:03:06.3]} 5... Ba7 {[%clk 0:03:01]} 6. Nge2 {[%clk 0:03:07.6]} 6... d6 {[%clk
0:03:02.1]} 7. O-O {[%clk 0:03:06.6]} 7... h5 {[%clk 0:03:02.9]} 8. d4 {[%clk
0:02:36.9]} 8... h4 {[%clk 0:03:03.5]} 9. d5 {[%clk 0:02:37.4]} 9... Nce7 {[%clk
0:02:55.3]} 10. e4 {[%clk 0:02:38.5]} 10... Ng6 {[%clk 0:02:51.3]} 11. Be3
{[%clk 0:02:33.8]} 11... Bxe3 {[%clk 0:02:48.6]} 12. fxe3 {[%clk 0:02:35.7]}
12... Bg4 {[%clk 0:02:32.8]} 13. Qa4+ {[%clk 0:02:20.8]} 13... Bd7 {[%clk
0:02:22]} 14. Qc2 {[%clk 0:02:17.7]} 14... Qg5 {[%clk 0:02:17.6]} 15. Qd3 {[%clk
0:02:15.5]} 15... Nf6 {[%clk 0:02:06.5]} 16. b4 {[%clk 0:01:56.6]} 16... hxg3
{[%clk 0:02:03.3]} 17. hxg3 {[%clk 0:01:57]} 17... Ng4 {[%clk 0:02:00]} 18. Nd1
{[%clk 0:01:38.2]} 18... Rh2 {[%clk 0:01:51.7]} 19. Rf5 {[%clk 0:01:27.2]} 19...
Qh6 {[%clk 0:01:26.2]} 20. Kf1 {[%clk 0:00:45.9]} 20... Rxg2 {[%clk 0:01:20.2]}
21. Kxg2 {[%clk 0:00:46.5]} 21... Qh2+ {[%clk 0:01:18.2]} 22. Kf3 {[%clk
0:00:47.1]} 22... Bxf5 {[%clk 0:01:18.6]} 23. exf5 {[%clk 0:00:46.8]} 23... e4+
{[%clk 0:01:19.5]} 24. Kxe4 {[%clk 0:00:40.8]} 24... Qg2+ {[%clk 0:01:09.5]} 25.
Kd4 {[%clk 0:00:39.8]} 25... N6e5 {[%clk 0:01:04.8]} 26. Qc2 {[%clk 0:00:35.4]}
26... Rc8 {[%clk 0:00:42.9]} 27. Rc1 {[%clk 0:00:22.3]} 27... c5+ {[%clk
0:00:41.1]} 28. bxc5 {[%clk 0:00:21.3]} 28... Rxc5 {[%clk 0:00:39.3]} 29. Nf4
{[%clk 0:00:14.2]} 29... Qxg3 {[%clk 0:00:27.6]} 30. Qb3 {[%clk 0:00:15]} 30...
Nh6 {[%clk 0:00:18.5]} 31. Qxb7 {[%clk 0:00:13.1]} 31... Nxf5+ {[%clk
0:00:19.6]} 32. Ke4 {[%clk 0:00:12.9]} 32... g6 {[%clk 0:00:15.4]} 33. Qa8+
{[%clk 0:00:07.7]} 33... Ke7 {[%clk 0:00:16.2]} 34. Rb1 {[%clk 0:00:06.9]} 34...
Qf3# {[%clk 0:00:16.4]} 0-1

[Event "*** Titled Tuesday Blitz"]
[Site "Chess.com"]
[Date "2019.01.01"]
[Round "9"]
[White "nurgyulsalimova"]
[Black "c63_amg"]
[Result "0-1"]
[WhiteElo "2472"]
[BlackElo "2670"]
[TimeControl "180+2"]
[EndTime "15:08:25 PST"]
[Termination "c63_amg won by checkmate"]

1. b3 {[%clk 0:03:01.9]} 1... e5 {[%clk 0:03:00.6]} 2. Bb2 {[%clk 0:03:02.9]}
2... Nc6 {[%clk 0:03:02.5]} 3. g3 {[%clk 0:03:03.3]} 3... d5 {[%clk 0:03:02.8]}
4. Bg2 {[%clk 0:03:05.2]} 4... Nf6 {[%clk 0:03:04]} 5. c4 {[%clk 0:03:03.5]}
5... Be6 {[%clk 0:03:03.3]} 6. d3 {[%clk 0:03:03.5]} 6... h5 {[%clk 0:02:42.5]}
7. h4 {[%clk 0:03:02.9]} 7... Bc5 {[%clk 0:02:34.7]} 8. Nh3 {[%clk 0:02:56.5]}
8... Qd7 {[%clk 0:02:20.5]} 9. Ng5 {[%clk 0:02:53.6]} 9... Ng4 {[%clk 0:02:06]}
10. O-O {[%clk 0:02:48.6]} 10... Ne7 {[%clk 0:01:47.7]} 11. Nc3 {[%clk
0:02:43.9]} 11... c6 {[%clk 0:01:45.6]} 12. Na4 {[%clk 0:02:31.8]} 12... Bd6
{[%clk 0:01:46.7]} 13. d4 {[%clk 0:02:14.4]} 13... e4 {[%clk 0:01:43.4]} 14. Nc5
{[%clk 0:02:06.4]} 14... Qc8 {[%clk 0:01:38.9]} 15. Ba3 {[%clk 0:01:47.5]} 15...
Bf5 {[%clk 0:01:33.5]} 16. cxd5 {[%clk 0:01:43.2]} 16... Nxd5 {[%clk 0:01:16.8]}
17. Ngxe4 {[%clk 0:01:35.7]} 17... Bxe4 {[%clk 0:01:17.9]} 18. Bxe4 {[%clk
0:01:35.4]} 18... b6 {[%clk 0:01:12.2]} 19. Bxd5 {[%clk 0:01:08.4]} 19... cxd5
{[%clk 0:01:13]} 20. e4 {[%clk 0:01:09.8]} 20... dxe4 {[%clk 0:01:00.6]} 21.
Nxe4 {[%clk 0:00:23.8]} 21... Bxa3 {[%clk 0:01:00.8]} 22. b4 {[%clk 0:00:25]}
22... O-O {[%clk 0:00:58.6]} 23. Qb3 {[%clk 0:00:16]} 23... Qe6 {[%clk 0:01:00]}
24. Qf3 {[%clk 0:00:09]} 24... Bxb4 {[%clk 0:00:55.7]} 25. Ng5 {[%clk
0:00:10.2]} 25... Qg6 {[%clk 0:00:56.4]} 26. Qb3 {[%clk 0:00:10.7]} 26... Be7
{[%clk 0:00:56.6]} 27. Nf3 {[%clk 0:00:10.9]} 27... Rad8 {[%clk 0:00:57.6]} 28.
Rfe1 {[%clk 0:00:12]} 28... Bf6 {[%clk 0:00:58.4]} 29. Rad1 {[%clk 0:00:12.5]}
29... Rfe8 {[%clk 0:00:59.7]} 30. Rxe8+ {[%clk 0:00:13.2]} 30... Rxe8 {[%clk
0:01:00.2]} 31. Qb5 {[%clk 0:00:15.1]} 31... Rd8 {[%clk 0:00:52.8]} 32. d5
{[%clk 0:00:15]} 32... Qe4 {[%clk 0:00:53.2]} 33. Rd3 {[%clk 0:00:14.8]} 33...
Rc8 {[%clk 0:00:46.8]} 34. d6 {[%clk 0:00:15.3]} 34... Rc1+ {[%clk 0:00:46.8]}
35. Kg2 {[%clk 0:00:16.5]} 35... Qe2 {[%clk 0:00:26.7]} 36. Kh3 {[%clk
0:00:05.7]} 36... Qf1# {[%clk 0:00:24.3]} 0-1

[Event "*** Titled Tuesday Blitz"]
[Site "Chess.com"]
[Date "2019.01.01"]
[Round "9"]
[White "MFguimaraes"]
[Black "andrzej"]
[Result "1/2-1/2"]
[WhiteElo "2310"]
[BlackElo "2276"]
[TimeControl "180+2"]
[EndTime "15:08:30 PST"]
[Termination "Game drawn by agreement"]

1. e4 {[%clk 0:03:01.9]} 1... c6 {[%clk 0:03:00.6]} 2. d4 {[%clk 0:03:01.7]}
2... d5 {[%clk 0:03:02.1]} 3. Nd2 {[%clk 0:03:03.4]} 3... dxe4 {[%clk
0:03:03.1]} 4. Nxe4 {[%clk 0:03:05.3]} 4... Nd7 {[%clk 0:03:03.7]} 5. Bd3 {[%clk
0:03:05.6]} 5... Ngf6 {[%clk 0:03:03.4]} 6. Nf3 {[%clk 0:03:06.3]} 6... Nxe4
{[%clk 0:03:02]} 7. Bxe4 {[%clk 0:03:08.2]} 7... Nf6 {[%clk 0:03:03.4]} 8. Bd3
{[%clk 0:03:09.8]} 8... Bg4 {[%clk 0:03:04.5]} 9. c3 {[%clk 0:03:10.4]} 9... Qd5
{[%clk 0:03:04.2]} 10. Be3 {[%clk 0:03:03.6]} 10... e6 {[%clk 0:02:56.6]} 11.
Be2 {[%clk 0:03:01.6]} 11... Rd8 {[%clk 0:02:34.3]} 12. Qb3 {[%clk 0:03:01.6]}
12... Bxf3 {[%clk 0:02:09]} 13. Bxf3 {[%clk 0:03:01.8]} 13... Qxb3 {[%clk
0:02:10.2]} 14. axb3 {[%clk 0:03:02.5]} 14... a6 {[%clk 0:02:11.7]} 15. b4
{[%clk 0:03:03.9]} 15... Bd6 {[%clk 0:02:06.8]} 16. O-O {[%clk 0:02:58.8]} 16...
Nd5 {[%clk 0:02:07.2]} 17. Bg5 {[%clk 0:02:59.4]} 17... f6 {[%clk 0:02:04.7]}
18. Bh4 {[%clk 0:02:58.7]} 18... Kf7 {[%clk 0:02:03.6]} 19. Bg3 {[%clk
0:02:59.2]} 19... Bxg3 {[%clk 0:01:59.3]} 20. hxg3 {[%clk 0:02:58.6]} 20... h5
{[%clk 0:01:59.7]} 21. Rfe1 {[%clk 0:02:53.9]} 21... h4 {[%clk 0:01:59.7]} 22.
gxh4 {[%clk 0:02:54.9]} 22... Rxh4 {[%clk 0:02:00.3]} 23. g3 {[%clk 0:02:56.3]}
23... Rhh8 {[%clk 0:01:52.6]} 24. Kg2 {[%clk 0:02:56.3]} 24... g5 {[%clk
0:01:52.9]} 25. Re2 {[%clk 0:02:55.1]} 25... Nb6 {[%clk 0:01:34.3]} 26. Rae1
{[%clk 0:02:52.6]} 26... Rde8 {[%clk 0:01:33.9]} 27. Be4 {[%clk 0:02:49]} 27...
Nc4 {[%clk 0:01:28.7]} 28. Bb1 {[%clk 0:02:39.7]} 28... Nb6 {[%clk 0:01:20.5]}
29. Ba2 {[%clk 0:02:38.5]} 29... Nd5 {[%clk 0:01:20.2]} 30. Bc4 {[%clk
0:02:30.4]} 30... g4 {[%clk 0:01:17.1]} 31. Re4 {[%clk 0:02:23.6]} 31... f5
{[%clk 0:01:14.7]} 32. Re5 {[%clk 0:02:24.6]} 32... Rh6 {[%clk 0:01:11.3]} 33.
Rh1 {[%clk 0:02:24.8]} 33... Rxh1 {[%clk 0:01:07]} 34. Kxh1 {[%clk 0:02:26.6]}
34... Ra8 {[%clk 0:00:58.7]} 35. Kg2 {[%clk 0:02:24.3]} 35... a5 {[%clk
0:00:59.3]} 36. b5 {[%clk 0:02:23.4]} 36... a4 {[%clk 0:01:00.2]} 37. bxc6
{[%clk 0:02:21.8]} 37... bxc6 {[%clk 0:01:02.1]} 38. f3 {[%clk 0:01:21]} 38...
gxf3+ {[%clk 0:00:56.8]} 39. Kxf3 {[%clk 0:01:20.7]} 39... a3 {[%clk 0:00:57.6]}
40. Bxd5 {[%clk 0:01:15.1]} 40... cxd5 {[%clk 0:00:49.8]} 41. bxa3 {[%clk
0:01:14.9]} 41... Rxa3 {[%clk 0:00:50.7]} 42. Re3 {[%clk 0:01:15.8]} 42... Kf6
{[%clk 0:00:51.9]} 43. Kf4 {[%clk 0:01:08.2]} 43... Rb3 {[%clk 0:00:52.5]} 44.
g4 {[%clk 0:01:07.1]} 44... fxg4 {[%clk 0:00:53]} 45. Kxg4 {[%clk 0:01:08.4]}
45... Ra3 {[%clk 0:00:52.5]} 46. Rf3+ {[%clk 0:01:09.5]} 46... Kg6 {[%clk
0:00:53.8]} 47. Kf4 {[%clk 0:01:10.7]} 47... Kf6 {[%clk 0:00:54.9]} 48. Rh3
{[%clk 0:01:10.1]} 48... Ra1 {[%clk 0:00:49.6]} 49. Rh6+ {[%clk 0:01:09]} 49...
Ke7 {[%clk 0:00:50.7]} 50. Ke3 {[%clk 0:01:04.3]} 1/2-1/2

[Event "*** Titled Tuesday Blitz"]
[Site "Chess.com"]
[Date "2019.01.01"]
[Round "9"]
[White "jacky72"]
[Black "MehdiHosseinipour"]
[Result "0-1"]
[WhiteElo "2590"]
[BlackElo "2573"]
[TimeControl "180+2"]
[EndTime "15:08:40 PST"]
[Termination "MehdiHosseinipour won by resignation"]

1. d4 {[%clk 0:03:01.9]} 1... Nf6 {[%clk 0:03:00.7]} 2. c4 {[%clk 0:03:03.4]}
2... e6 {[%clk 0:03:02.1]} 3. Nf3 {[%clk 0:03:04.8]} 3... b6 {[%clk 0:03:02.6]}
4. g3 {[%clk 0:03:05.8]} 4... Bb4+ {[%clk 0:03:02.7]} 5. Bd2 {[%clk 0:03:06.6]}
5... Be7 {[%clk 0:03:03.9]} 6. Bg2 {[%clk 0:03:07.6]} 6... c6 {[%clk 0:03:02.5]}
7. O-O {[%clk 0:03:08.5]} 7... d5 {[%clk 0:03:01.9]} 8. Nc3 {[%clk 0:03:08.4]}
8... O-O {[%clk 0:03:02.1]} 9. cxd5 {[%clk 0:03:09.8]} 9... cxd5 {[%clk
0:03:02.2]} 10. Rc1 {[%clk 0:03:09.7]} 10... Bb7 {[%clk 0:02:51.8]} 11. Qa4
{[%clk 0:03:05.5]} 11... a6 {[%clk 0:02:50.2]} 12. Ne5 {[%clk 0:03:00.7]} 12...
Nfd7 {[%clk 0:02:45.7]} 13. Nd3 {[%clk 0:02:56.7]} 13... Nc6 {[%clk 0:02:43]}
14. e3 {[%clk 0:02:53.9]} 14... Rc8 {[%clk 0:02:40.6]} 15. Qd1 {[%clk
0:02:53.2]} 15... Nf6 {[%clk 0:02:31]} 16. a3 {[%clk 0:02:53.8]} 16... Bd6
{[%clk 0:02:20.8]} 17. f4 {[%clk 0:02:52.8]} 17... Na5 {[%clk 0:02:07.9]} 18.
Ne5 {[%clk 0:02:53.6]} 18... Nc4 {[%clk 0:02:05.1]} 19. Nxc4 {[%clk 0:02:46.8]}
19... Rxc4 {[%clk 0:02:07]} 20. g4 {[%clk 0:02:42.9]} 20... Rc7 {[%clk
0:01:48.7]} 21. g5 {[%clk 0:02:43.3]} 21... Ne4 {[%clk 0:01:50.1]} 22. Nxe4
{[%clk 0:02:35.9]} 22... dxe4 {[%clk 0:01:52]} 23. Rxc7 {[%clk 0:02:37.1]} 23...
Qxc7 {[%clk 0:01:53.9]} 24. Qb1 {[%clk 0:02:38.9]} 24... Qc6 {[%clk 0:01:47.4]}
25. Rc1 {[%clk 0:02:38.2]} 25... Qd5 {[%clk 0:01:48.9]} 26. Qc2 {[%clk 0:02:30]}
26... f6 {[%clk 0:01:29.1]} 27. gxf6 {[%clk 0:02:29.1]} 27... gxf6 {[%clk
0:01:29.5]} 28. Kh1 {[%clk 0:02:30.2]} 28... Kh8 {[%clk 0:01:27.5]} 29. Rg1
{[%clk 0:02:20.9]} 29... Rc8 {[%clk 0:01:20.7]} 30. Qd1 {[%clk 0:02:22]} 30...
Rg8 {[%clk 0:01:21.3]} 31. Bh3 {[%clk 0:02:20.2]} 31... Rxg1+ {[%clk 0:01:04.6]}
32. Kxg1 {[%clk 0:02:21]} 32... Qc4 {[%clk 0:00:51.3]} 33. Bc3 {[%clk 0:02:20]}
33... Bd5 {[%clk 0:00:43.5]} 34. Qh5 {[%clk 0:02:04.8]} 34... Kg7 {[%clk
0:00:35]} 35. Qe8 {[%clk 0:02:02.5]} 35... Qe2 {[%clk 0:00:26.9]} 36. Qd7+
{[%clk 0:02:00.2]} 36... Kh6 {[%clk 0:00:28.2]} 37. Qxd6 {[%clk 0:02:00.3]}
37... Qxe3+ {[%clk 0:00:29.3]} 38. Kg2 {[%clk 0:01:55.6]} 38... Qf3+ {[%clk
0:00:30.6]} 39. Kg1 {[%clk 0:01:57.2]} 39... Qe3+ {[%clk 0:00:32.1]} 40. Kg2
{[%clk 0:01:56.4]} 40... Qf3+ {[%clk 0:00:33.6]} 41. Kg1 {[%clk 0:01:58]} 41...
Qxh3 {[%clk 0:00:31.9]} 42. Qf8+ {[%clk 0:01:59.3]} 42... Kg6 {[%clk 0:00:33.1]}
43. Qg8+ {[%clk 0:01:50.7]} 43... Kf5 {[%clk 0:00:34.4]} 44. Qg3 {[%clk
0:01:51.7]} 44... Qg4 {[%clk 0:00:32.8]} 45. Kf2 {[%clk 0:01:47.5]} 45... Qxf4+
{[%clk 0:00:26]} 46. Qxf4+ {[%clk 0:01:46.2]} 46... Kxf4 {[%clk 0:00:27.9]} 47.
Bd2+ {[%clk 0:01:47.5]} 47... Kf5 {[%clk 0:00:29.2]} 48. Ke3 {[%clk 0:01:44.9]}
48... Kg4 {[%clk 0:00:29.9]} 49. Be1 {[%clk 0:01:46.3]} 49... h5 {[%clk
0:00:25.5]} 50. Bg3 {[%clk 0:01:46.8]} 50... Kh3 {[%clk 0:00:25.9]} 51. Bc7
{[%clk 0:01:47.7]} 51... b5 {[%clk 0:00:27.3]} 52. b4 {[%clk 0:01:46.4]} 52...
Kg2 {[%clk 0:00:28.3]} 53. Bg3 {[%clk 0:01:43.2]} 53... Kh3 {[%clk 0:00:29]} 54.
Bb8 {[%clk 0:01:43.7]} 54... h4 {[%clk 0:00:30.4]} 55. Bd6 {[%clk 0:01:42.2]}
55... Kg2 {[%clk 0:00:31.7]} 56. Be7 {[%clk 0:01:43]} 56... Kxh2 {[%clk
0:00:31.3]} 57. Bxf6 {[%clk 0:01:41.1]} 57... Kg3 {[%clk 0:00:29.9]} 58. Be5+
{[%clk 0:01:42]} 58... Kg2 {[%clk 0:00:31.3]} 59. Bf6 {[%clk 0:01:40.4]} 59...
h3 {[%clk 0:00:32.4]} 60. Be5 {[%clk 0:01:39.8]} 60... h2 {[%clk 0:00:33.8]} 61.
Bxh2 {[%clk 0:01:41.7]} 61... Kxh2 {[%clk 0:00:35.7]} 0-1